Cogmind - Beta 12 @@@ ROGUE MODE // 2023.04.08 @ 10:34:19 Player: BalancedCompEngine Result: Escaped singularity! Performance ------------- Evolutions (9) 4500 Regions Visited (30) 6000 Robots Destroyed (113) 565 Value Destroyed (3312) 3312 Prototype IDs (316) 6320 Alien Tech Used (16) 3200 Bonus (36986) 36986 TOTAL SCORE: 60883 Bonus ------- Triggered High Security 500 High Alert Combat Kills 513 Follower Combat Kills 5693 Network Hubs Disabled 200 Aligned with FarCom 300 Met Imprinter 300 Was Imprinted 300 Built Enhanced Grunts 300 Found Hidden Lab 3000 Used Core Reset Matrix 3000 Destroyed MAIN.C Guards 500 Met MAIN.C 5000 Destroyed MAIN.C Shell 5000 Destroyed MAIN.C 10000 Destroyed A8 300 Destroyed A6 400 Destroyed A5 500 Destroyed A4 700 Destroyed Architect 15000 Win 3000 Friendly Fire -17520 Cogmind --------- Core Integrity 1042/1850 Matter 109/550 Energy 842/850 System Corruption 0% Temperature Warm (108) Movement Flying (16) Location Near Former Tau Ceti IV Parts ------- > --- POWER (2) -------- Improved Fusion Compressor Improved Fusion Compressor > --- PROPULSION (8) --- Flying ITA-ITA Exoskeleton Advanced Surge Thruster Advanced Surge Thruster Advanced Surge Thruster Advanced Surge Thruster > --- UTILITY (13) ----- Large Storage Unit Zionite Biocell Array Experimental Targeting Computer Experimental Targeting Computer Experimental Core Analyzer Experimental Armor Integrity Analyzer Experimental Weapon Cycler Advanced Reaction Control System Experimental Phase Shifter Improved Utility Shielding Zionite Shade Armor Experimental Powered Armor AEGIS Remote Shield > --- WEAPON (2) ------- Null Cannon > --- INVENTORY (15) --- Advanced Surge Thruster Cooled Impulse Thruster Improved Q-thruster Advanced Quantum Shading Machine Improved Utility Shielding Improved Utility Shielding Zionite Weapon Casing Zionite Shade Armor Zionite Shade Armor Zionite Shade Armor Experimental Force Field Improved Potential Cannon Zionite Alpha Cannon Mk. II Peak State ------------ > --- POWER ------------ Improved Fusion Compressor Improved Fusion Compressor > --- PROPULSION ------- Flying ITA-ITA Exoskeleton Advanced Surge Thruster Advanced Surge Thruster Advanced Surge Thruster Advanced Surge Thruster > --- UTILITY ---------- Large Storage Unit Zionite Biocell Array Advanced Quantum Shading Machine Experimental Targeting Computer Improved Armor Integrity Analyzer Experimental Weapon Cycler Experimental Phase Shifter Zionite Shade Armor Zionite Shade Armor Zionite Shade Armor Zionite Shade Armor Experimental Powered Armor AEGIS Remote Shield > --- WEAPON ----------- Improved Potential Cannon > --- INVENTORY -------- Advanced Surge Thruster Advanced Surge Thruster Advanced Surge Thruster Advanced Surge Thruster Advanced Surge Thruster Improved Q-thruster Integrity Redistributor Null Cannon Plasma Cutter [Rating: 232] Favorites ----------- Power Improved Fusion Compressor Engine Ion Engine Power Core Improved Fusion Compressor Reactor Zionite Light DM Reactor Propulsion Improved VTOL Module Treads Light Treads Leg Aluminum Leg Flight Unit Improved VTOL Module Utility Small Storage Unit Device Armored Scrap Engine Storage Small Storage Unit Processor Experimental Targeting Computer Hackware Quantum Router Protection Experimental Powered Armor Artifact Spacefold Activator Weapon Enhanced Force Lance Energy Gun AWS/Thermal Energy Cannon Constructs Ballistic Gun High-powered Shotgun Ballistic Cannon Linear Accelerator Launcher Rocket Launcher Special Weapon Plasma Cutter Impact Weapon Great Maul Slashing Weapon Vibroblade Piercing Weapon Enhanced Force Lance Build | -11 -10 -10 -9 -9 -9 -8 -8 -8 -8 -6 -6 -6 -6 -5 -5 -5 -5 -5 -5 -4 -4 -4 -3 -3 -3 -2 -2 -1 -1 -1 ------- Run | Jun Mat Min Mat Min Exi Min Mat Sto Rec Fac Low Low Zio Pro Fac Ext Cet Arc Hub Fac Arm Lab Res Qua Sec Res Tes Acc Com Ac0 Slots Evolved 18 | . . . 2 . . . 2 . . 4 . . . . 2 . . . . 2 . . 2 . . 2 . 2 . . Power 1 | . . . . . . . . . . . . . . . . . . . . . . . 1 . . -1 . 1 . . Propulsion 6 | . . . 2 . . . 1 . . . . . . . 1 . . . . . . . . . . 2 . . . . Utility 11 | . . . . . . . 1 . . 4 . . . . 1 . . . . 2 . . 1 . . 2 . . . . Weapon . | . . . . . . . . . . . . . . . . . . . . . . . . . . -1 . 1 . . Parts Attached 365 | 1 . 14 9 5 3 . 2 10 1 10 5 . 7 3 2 8 3 . 4 5 5 6 36 13 14 21 41 28 95 14 Power 23 | . . 3 . . . . . 1 . . . . 1 . 1 2 1 . 1 . . . 2 1 1 . 3 2 4 . Engine 4 | . . 2 . . . . . 1 . . . . 1 . . . . . . . . . . . . . . . . . Core 9 | . . 1 . . . . . . . . . . . . 1 . . . . . . . 2 . 1 . . 1 3 . Reactor 10 | . . . . . . . . . . . . . . . . 2 1 . 1 . . . . 1 . . 3 1 1 . Propulsion 71 | . . 2 7 1 . . 1 5 . . . . . . 1 . . . 1 1 . 1 6 . 1 4 7 2 26 5 Treads 2 | . . 2 . . . . . . . . . . . . . . . . . . . . . . . . . . . . Leg 4 | . . . 3 . . . . . . . . . . . . . . . . . . . . . . . 1 . . . Wheel . | . . . . . . . . . . . . . . . . . . . . . . . . . . . . . . . Hover . | . . . . . . . . . . . . . . . . . . . . . . . . . . . . . . . Flight 65 | . . . 4 1 . . 1 5 . . . . . . 1 . . . 1 1 . 1 6 . 1 4 6 2 26 5 Utility 175 | 1 . 3 2 2 2 . 1 1 1 6 . . 1 3 . 5 1 . 1 2 2 3 12 4 11 15 26 19 48 3 Device 85 | 1 . 2 . 1 . . . . 1 2 . . . 1 . 3 . . 1 1 1 . 8 2 6 10 15 9 21 . Storage 13 | . . . . . 2 . . . . . . . . . . . . . . . . . . . . . 4 2 4 1 Processor 19 | . . . . . . . . . . 3 . . . 1 . . . . . 1 . . 1 . . 1 3 . 8 1 Hackware 12 | . . . . . . . . 1 . 1 . . . . . . . . . . . 1 . . 1 1 1 2 4 . Protection 39 | . . 1 2 1 . . 1 . . . . . 1 1 . 2 1 . . . 1 2 3 2 . 2 1 6 11 1 Artifact 7 | . . . . . . . . . . . . . . . . . . . . . . . . . 4 1 2 . . . Weapon 96 | . . 6 . 2 1 . . 3 . 4 5 . 5 . . 1 1 . 1 2 3 2 16 8 1 2 5 5 17 6 Energy Gun 10 | . . 2 . . 1 . . 1 . . 3 . . . . . . . . . . 1 . . . . 2 . . . Energy Cannon 18 | . . . . . . . . . . . . . . . . . . . . . . . . . . 1 . 1 10 6 Ballistic Gun 7 | . . 2 . 1 . . . 1 . . . . 1 . . 1 1 . . . . . . . . . . . . . Ballistic Cannon 1 | . . . . . . . . . . . . . . . . . . . . . 1 . . . . . . . . . Launcher 4 | . . 2 . 1 . . . . . 1 . . . . . . . . . . . . . . . . . . . . Special Weapon 10 | . . . . . . . . . . . . . 2 . . . . . 1 2 1 . . . . . . 2 2 . Impact Weapon 9 | . . . . . . . . 1 . 1 2 . 1 . . . . . . . . . . 3 . . . . 1 . Slashing Weapon 7 | . . . . . . . . . . 1 . . 1 . . . . . . . . . 1 . . . . . 4 . Piercing Weapon 30 | . . . . . . . . . . 1 . . . . . . . . . . 1 1 15 5 1 1 3 2 . . Special Melee Weapon . | . . . . . . . . . . . . . . . . . . . . . . . . . . . . . . . Unidentified Prototypes 61 | . . . 1 . . . . 4 . . . . 1 . . 4 2 . . 2 . 5 4 1 . 4 23 4 6 . Corrupted Parts 1 | . . . . . . . . . . . . . . 1 . . . . . . . . . . . . . . . . System Corruption 2 | . . . . . . . . . . . . . . 2 . . . . . . . . . . . . . . . . Parts Lost 21 | . . 3 . . . . . . . . . . . 1 . . . . 2 . 1 . 3 . . . . 3 5 3 Power 3 | . . 1 . . . . . . . . . . . . . . . . 1 . . . 1 . . . . . . . Propulsion 7 | . . . . . . . . . . . . . . . . . . . 1 . . . 1 . . . . . 2 3 Utility 7 | . . 1 . . . . . . . . . . . 1 . . . . . . 1 . 1 . . . . 1 2 . Weapon 4 | . . 1 . . . . . . . . . . . . . . . . . . . . . . . . . 2 1 . Highest Loss Streak 3 | . . 3 . . . . . . . . . . . 1 . . . . 2 . 1 . 1 . . . . 2 2 2 To Critical Strikes . | . . . . . . . . . . . . . . . . . . . . . . . . . . . . . . . Average Slot Usage (%) 79 | . 100 80 94 89 98 88 83 87 89 83 81 80 85 86 82 85 93 88 82 74 82 70 80 88 88 84 86 89 68 83 Engine 1 | . 14 3 11 11 11 11 9 9 9 6 6 6 5 6 . . . . . . . . . . . . . . . . Core 2 | . . 3 . . . . . . . . . . . . 5 3 . . . . . . 3 4 4 . . 2 4 8 Reactor 2 | . . . . . . . . . . . . . . . . 1 5 5 5 5 5 5 3 4 4 4 4 5 2 . Treads 1 | . . 19 17 . . . . . . . . . . . . . . . . . . . . . . . . . . . Leg 1 | . 28 8 13 . . . . . . . . . . . . . . . . . . . . . . . . . 1 . Flight 24 | . . . 12 39 44 44 45 45 45 33 33 33 33 33 35 35 35 35 35 31 26 26 23 28 28 28 30 29 20 19 Device 17 | . 14 19 14 11 . . . . 8 13 13 13 13 9 11 13 17 17 22 21 25 21 30 28 26 21 21 19 16 16 Storage 5 | . 14 . . . 7 11 9 9 9 6 6 6 6 6 5 5 5 5 5 5 5 5 4 4 4 4 4 5 7 8 Processor 5 | . . . . . . . . . . 11 13 13 13 16 11 10 5 5 . 1 5 5 . . . . 4 4 4 16 Hackware 1 | . . . . . . . . 6 9 6 1 . . . . . . . . . . . 4 4 . . . 5 1 . Protection 6 | . . 3 7 11 14 11 11 9 . . . . 5 6 5 5 11 11 11 10 10 1 4 8 9 12 13 11 6 11 Ballistic Gun 3 | . 28 13 11 10 11 . . . . . . . 4 6 5 6 10 5 . . . . . . . . . . . . Naked Turns . | . . . . . . . . . . . . . . . . . . . . . . . . . . . . . . . Heaviest Build 128 | 14 14 15 17 18 19 19 23 23 25 25 23 23 25 25 26 31 30 29 29 29 41 38 62 53 53 46 54 67 128 101 Greatest Support 155 | 20 20 40 20 19 19 19 23 25 25 25 25 25 25 25 30 30 30 30 30 47 47 52 57 56 56 72 76 79 155 130 Greatest Overweight (x) 22 | . . . 1 . . . . . . . . . . . . 1 . . . . . 9 1 . . . . . 22 . Average Overweight (x) . | . . . . . . . . . . . . . . . . . . . . . . 1 . . . . . . . . Largest Inventory Capacity 15 | 8 8 8 5 5 10 8 8 8 8 8 8 8 8 8 8 8 8 8 8 8 8 8 8 8 8 8 8 8 15 15 Average Capacity 8 | 8 8 5 5 5 7 8 8 8 8 8 8 8 8 8 8 8 8 8 8 8 8 8 8 8 8 8 8 8 9 15 Most Carried 15 | 6 6 7 5 5 8 6 5 8 8 8 8 7 8 8 8 8 8 8 8 8 8 8 8 8 8 8 8 8 15 15 Average Carried 7 | 5 5 4 4 4 5 6 4 6 7 7 6 7 7 8 7 7 8 8 7 7 7 7 7 7 7 7 7 7 8 14 Final Capacity 15 | 8 8 5 5 5 8 8 8 8 8 8 8 8 8 8 8 8 8 8 8 8 8 8 8 8 8 8 8 8 15 15 Final Carried 15 | 5 6 5 5 5 6 6 5 8 8 8 7 7 8 8 8 8 8 8 6 8 8 7 6 8 8 8 8 8 15 14 Scrap Engine Consumption 59 | . . . . . . . . . . 5 . . . . . 3 . . . 1 1 5 1 . . 1 2 4 36 . Constructs Created 5 | . . . . . . . . . . . . . . . . 1 . . . . . . . . . . 1 . 3 . Constructs Modified 17 | . . . . . . . . . . . . . . . . . . . . . . . . . . . . . 17 . Class Distribution -------------------- 27% | Alien-Sprinter 15% | Sprinter 13% | Mutant 12% | Alien-Mutant 9% | Scavenger-Sprinter 8% | Hacker-Sprinter 6% | Commander-Sprinter Dominant Class ---------------- Mutant | -10/Materials Mutant | -10/Mines Scavenger-Mutant | -9/Materials Sprinter | -9/Mines Sprinter | -9/Exiles Sprinter | -8/Mines Sprinter | -8/Materials Sprinter | -8/Storage Sprinter | -8/Recycling Sprinter | -6/Factory Sprinter | -6/Lower Caves Sprinter | -6/Lower Caves Sprinter | -6/Zion Sprinter | -5/Proximity Caves Sprinter | -5/Factory Commander-Sprinter | -5/Extension Scavenger-Sprinter | -5/Cetus Scavenger-Sprinter | -5/Archives Scavenger-Sprinter | -5/Hub_04(d) Scavenger-Sprinter | -4/Factory Scavenger-Sprinter | -4/Armory Mutant | -4/Lab Hacker-Sprinter | -3/Research Hacker-Sprinter | -3/Quarantine Alien-Sprinter | -3/Section 7 Alien-Sprinter | -2/Research Alien-Sprinter | -2/Testing Alien-Sprinter | -1/Access Alien-Sprinter | -1/Command Alien-Sprinter | -1/Access_0 Resources | -11 -10 -10 -9 -9 -9 -8 -8 -8 -8 -6 -6 -6 -6 -5 -5 -5 -5 -5 -5 -4 -4 -4 -3 -3 -3 -2 -2 -1 -1 -1 ----------- Run | Jun Mat Min Mat Min Exi Min Mat Sto Rec Fac Low Low Zio Pro Fac Ext Cet Arc Hub Fac Arm Lab Res Qua Sec Res Tes Acc Com Ac0 Matter Collected 7882 | 228 . 250 136 61 . . . 22 . 135 167 . 44 74 23 153 113 24 20 28 . . 968 520 310 384 98 272 3623 229 Remotely . | . . . . . . . . . . . . . . . . . . . . . . . . . . . . . . . Salvage Created 7173 | 111 . 151 261 . . 47 . 22 . 197 88 . . 84 225 74 81 . . 97 66 . 363 658 197 515 107 184 3374 271 Parts 317 | 6 . 11 16 . . 2 . . . 12 4 . . 3 16 2 5 . . 3 11 . 11 33 8 9 11 10 139 5 Haulers Intercepted 3 | . . . . . . . . . . . . . . . . . . . . . . . . . . 2 . 1 . . Recyclers Shooed 3 | . . . 1 . . . . . . . . . . . . 1 . . . . . . . . . 1 . . . . Parts Field Recycled . | . . . . . . . . . . . . . . . . . . . . . . . . . . . . . . . Retrieved Matter . | . . . . . . . . . . . . . . . . . . . . . . . . . . . . . . . Parts Self-Destructed 9 | . . . . . . . . . . . 6 . . 3 . . . . . . . . . . . . . . . . Prevented 7 | . . . . . . . . . . . . . . 7 . . . . . . . . . . . . . . . . Kills | -11 -10 -10 -9 -9 -9 -8 -8 -8 -8 -6 -6 -6 -6 -5 -5 -5 -5 -5 -5 -4 -4 -4 -3 -3 -3 -2 -2 -1 -1 -1 ------- Run | Jun Mat Min Mat Min Exi Min Mat Sto Rec Fac Low Low Zio Pro Fac Ext Cet Arc Hub Fac Arm Lab Res Qua Sec Res Tes Acc Com Ac0 Combat Hostiles Destroyed 61 | . . 14 4 . . 1 . . . 3 3 . . 2 3 1 . . . 7 6 . . . . . 1 1 6 9 Melee 3 | . . . . . . . . . . . . . . . . . . . . . . . . . . . 1 1 1 . Guns 16 | . . 2 4 . . 1 . . . . 3 . . 2 3 1 . . . . . . . . . . . . . . Cannons 12 | . . . . . . . . . . . . . . . . . . . . 1 1 . . . . . . . 3 7 AOE 28 | . . 12 . . . . . . . 3 . . . . . . . . . 6 5 . . . . . . . 2 . Classes Destroyed 21 | 2 . 3 1 . . 1 . 1 . 1 . . . . 1 . . . . . 2 . . . 1 1 2 . 5 . Worker 7 | . . . . . . . . 1 . 1 . . . . . . . . . . . . . 3 1 . . . 1 . Builder 7 | . . 1 . . . . . . . 1 . . . . . . . . . . . . . 3 . 1 . 1 . . Tunneler 3 | 1 . 2 . . . . . . . . . . . . . . . . . . . . . . . . . . . . Hauler 3 | . . . . . . . . . . . . . . . . . . . . . . . . . . 2 . 1 . . Recycler 15 | 1 . . 1 . . . . . . 1 . . . . . . . . . . . . 3 4 1 1 . . 3 . Operator 3 | . . . . . . . . . . . . . . . . . . . . . . . . . . . 1 . 2 . Watcher 4 | . . . . . . . . . . . . . . . 2 . . . . . . . . . . . . . 2 . Swarmer 15 | . . . . . . . . . . 3 3 . . 1 . . . . . 5 3 . . . . . . . . . Saboteur 3 | . . . . . . . . . . . . . . . . . . . . . 3 . . . . . . . . . Grunt 10 | . . 3 2 . . . . . . . . . . . 3 . . . . 2 . . . . . . . . . . Protector 1 | . . . . . . . . . . . . . . . . . . . . . . . . . . . . . 1 . Researcher 1 | . . . . . . . . . . . . . . . . . . . . . . . . . 1 . . . . . Sentry 3 | . . . 2 . . . . . . . . . . . . 1 . . . . . . . . . . . . . . Specialist 1 | . . . . . . . . . . . . . . . . . . . . . . . . . . . . . 1 . Hunter 3 | . . . . . . 1 . . . . . . . 1 . . . . . . . . . . . . . . 1 . Programmer 3 | . . . . . . . . . . . . . . . . . . . . . . . . . . . . 1 2 . Enhanced Grunt 4 | . . . . . . . . . . . . . . . . . 1 . . . . . . . . . . . . 3 Enhanced Hunter 1 | . . . . . . . . . . . . . . . . . . . . . . . . . . . . . . 1 Protovariant X 1 | . . . . . . . . . . . . . . . . . . . . . . . . . . . 1 . . . Z-Courier 1 | . . . . . . . . . . . . . . . . . . . . . . . . . . 1 . . . . Z-EX 2 | . . . . . . . . . . . . . . . . . . . . . . . . . . . . . 2 . Assembled 11 | . . 11 . . . . . . . . . . . . . . . . . . . . . . . . . . . . Martyr 4 | . . . . . . . . . . . . . . . . . . . . . . . . . . . . . 4 . Wizard 1 | . . . . . . . . . . . . . . . . . . . . . 1 . . . . . . . . . Fireman 4 | . . . . . . . . . . . . . . . . . . . . . . . . . . . . . 4 . Mutant 8 | . . . . . . . . . . . . . . . . . . . . . . . . . . . . . 8 . Best Kill Streak 11 | 2 . 11 4 . . 1 . 1 . 4 3 . . 1 4 1 . . . 4 6 . 1 6 2 2 1 1 5 2 Combat Bots Only 11 | . . 11 3 . . 1 . . . 3 3 . . 1 3 1 . . . 4 6 . . . . . 1 1 4 2 Max Kills in Single Turn 4 | 1 . 3 1 . . 1 . 1 . 2 1 . . 1 1 1 1 . . 3 4 . 1 1 1 1 1 1 2 1 Gunslinging . | . . . . . . . . . . . . . . . . . . . . . . . . . . . . . . . Exploded 4 | . . 3 . . . . . . . 2 . . . . . . . . . 3 4 . . . . . . . 1 . Melee 1 | . . . . . . . . . . . . . . . . . . . . . . . . . . . 1 1 1 . Uniques/NPCs Destroyed 7 | . . . . . . . . . . . . . . . . . . . . . . . . . . . . . 2 5 MAIN.C Shell (-1/Command) MAIN.C (-1/Command) A8 (-1/Access_0) A6 (-1/Access_0) A5 (-1/Access_0) A4 (-1/Access_0) Architect (-1/Access_0) Combat | -11 -10 -10 -9 -9 -9 -8 -8 -8 -8 -6 -6 -6 -6 -5 -5 -5 -5 -5 -5 -4 -4 -4 -3 -3 -3 -2 -2 -1 -1 -1 -------- Run | Jun Mat Min Mat Min Exi Min Mat Sto Rec Fac Low Low Zio Pro Fac Ext Cet Arc Hub Fac Arm Lab Res Qua Sec Res Tes Acc Com Ac0 Damage Taken 8085 | . . 459 186 16 . 32 31 63 . 133 68 50 . 159 18 121 192 . 335 323 386 . 1357 221 638 36 . 930 1197 1134 Core 1402 | . . 66 23 . . 10 14 14 . 67 . 6 . . . . . . 44 71 78 . 120 . 431 . . 187 110 161 Absorbed by Shields 1070 | . . . . . . . . . . . . . . . . . 12 . . . . . . . . . . . . 1058 Redirected to Shielding 440 | . . . . . . . . . . . . . . . . . 17 . . 29 66 . 46 13 . . . 88 116 65 Regen/Repaired (Parts) 1864 | . . . . . . . . . . . . . 210 . . 16 . . . . . . 240 . . . . 132 1266 . Core Remaining (%) 84 | 100 . 73 . . . 91 . . 94 . . . . 91 . . . . 95 . . 100 . . 44 . 100 . . 56 Volleys Fired 370 | 7 1 19 12 1 . . . . . 2 . . . . . 13 10 8 1 4 7 . . . . . . . 179 106 Largest 2 | 2 2 2 2 1 . . . . . 1 . . . . . 2 2 1 1 1 1 . . . . . . . 1 1 Hottest 200 | 40 40 60 100 33 . . . . . 43 . . . . . 53 55 20 . . 66 . . . . . . . 200 200 Shots Fired 476 | 14 2 21 24 1 . 2 1 . . 2 10 8 . 18 17 34 17 8 1 4 7 . . . . . . . 179 106 Gun 166 | 14 2 11 24 . . 2 1 . . . 10 8 . 18 17 34 17 8 . . . . . . . . . . . . Cannon 122 | . . . . . . . . . . . . . . . . . . . . . 5 . . . . . . . 11 106 Launcher 13 | . . 10 . 1 . . . . . 2 . . . . . . . . . . . . . . . . . . . . Special 175 | . . . . . . . . . . . . . . . . . . . 1 4 2 . . . . . . . 168 . Kinetic 136 | 14 2 9 12 . . . . . . . . . . 18 17 34 17 8 . . 5 . . . . . . . . . Thermal 317 | . . . 12 . . 2 1 . . . 10 8 . . . . . . . . . . . . . . . . 178 106 Explosive 20 | . . 10 . 1 . . . . . 2 . . . . . . . . 1 4 2 . . . . . . . . . Electromagnetic 2 | . . 2 . . . . . . . . . . . . . . . . . . . . . . . . . . . . Phasic 1 | . . . . . . . . . . . . . . . . . . . . . . . . . . . . . 1 . Robot Hit Streak 26 | 5 . 5 8 . . 3 . . . 1 7 6 . 9 14 17 8 5 . 2 3 . . . . . . . 26 11 Robot Miss Streak 5 | 2 2 2 4 . . . 1 . . 2 1 1 . 1 1 3 5 1 . 1 . . . . . . . . 2 3 Penetration Max . | . . . . . . . . . . . . . . . . . . . . . . . . . . . . . . . Secondary Targets 1 | . . . . . . . . . . . . . . . . 1 . . . . . . . . . . . . . . Max Gunslinging Chain 1 | . . . . . . . . . . . . . . . . 1 . . . . . . . . . . . . . . Autonomous 69 | . . . . . . 2 1 . . . 10 8 . 18 17 13 . . . . . . . . . . . . . . Shots Hit Robots 468 | 10 . 13 17 . . 2 . 3 . 4 9 6 . 16 16 29 14 8 . 2 2 . 5 15 3 9 7 7 207 64 Core Hits 253 | 3 . 45 9 1 . 2 . . . 4 3 2 . 4 11 12 6 10 . 7 6 . 3 7 2 5 3 4 73 31 Critical Kills 4 | . . . . . . . . . . . . . . . 1 . 1 . . . . . . . . . . . . 2 Critical Parts Destroyed 1 | . . . . . . . . 1 . . . . . . . . . . . . . . . . . . . . . . Critical Strikes 28 | . . . . . . . . 1 . 1 . . . . 1 . 1 . . . . . . 2 1 2 3 . 14 2 Meltdown 2 | . . . . . . . . . . . . . . . . . . . . . . . . . . . . . . 2 Destroy 2 | . . . . . . . . . . . . . . . 1 . 1 . . . . . . . . . . . . . Smash 1 | . . . . . . . . 1 . . . . . . . . . . . . . . . . . . . . . . Sever 9 | . . . . . . . . . . . . . . . . . . . . . . . . . . . . . 9 . Impale 14 | . . . . . . . . . . 1 . . . . . . . . . . . . . 2 1 2 3 . 5 . Melee Attacks 221 | . . . . . . . . 15 . 7 4 . . . . . . . . . 1 12 22 22 13 9 14 26 76 . Kinetic 3 | . . . . . . . . . . . . . . . . . . . . . . . . . . . . . 3 . Impact 21 | . . . . . . . . 15 . 2 4 . . . . . . . . . . . . . . . . . . . Slashing 48 | . . . . . . . . . . . . . . . . . . . . . . . . . . . . . 48 . Piercing 149 | . . . . . . . . . . 5 . . . . . . . . . . 1 12 22 22 13 9 14 26 25 . Sneak Attacks 67 | . . . . . . . . 2 . 3 . . . . . . . . . . . . 5 12 3 6 5 3 28 . Combat Hostiles 5 | . . . . . . . . . . . . . . . . . . . . . . . . . . . 5 . . . Follow-up Attacks 1 | . . . . . . . . . . . . . . . . . . . . . . . . . . . . 1 . . Damage Inflicted 25110 | 94 11 1334 358 15 . 55 . 169 . 573 235 171 . 301 442 723 284 148 . 882 764 . 434 1417 383 926 574 495 7428 6894 Guns 2996 | 94 . 185 358 . . 55 . . . . 235 171 . 301 442 723 284 148 . . . . . . . . . . . . Cannons 6357 | . . . . . . . . . . . . . . . . . . . . . . . . . . . . . 835 5522 Explosions 5125 | . . 1147 . 15 . . . . . 343 . . . . . . . . . 809 688 . . . . . . . 751 1372 Melee 9310 | . . . . . . . . 169 . 230 . . . . . . . . . . . . 434 1417 383 926 574 495 4682 . Ramming 13 | . 11 2 . . . . . . . . . . . . . . . . . . . . . . . . . . . . Kinetic 2473 | 94 . 170 193 . . . . . . . . . . 301 442 723 284 148 . . . . . . . . . . 118 . Thermal 10266 | . . . 165 . . 55 . . . . 235 171 . . . . . . . . . . . . . . . . 2746 6894 Explosive 3002 | . . 1147 . 15 . . . . . 343 . . . . . . . . . 809 688 . . . . . . . . . Electromagnetic 15 | . . 15 . . . . . . . . . . . . . . . . . . . . . . . . . . . . Impact 274 | . . . . . . . . 169 . 105 . . . . . . . . . . . . . . . . . . . . Slashing 3044 | . . . . . . . . . . . . . . . . . . . . 73 76 . . . . . . . 2895 . Piercing 6023 | . . . . . . . . . . 125 . . . . . . . . . . . . 434 1417 383 926 574 495 1669 . Highest Corruption 6 | . . . . . . . . . . . . . . 2 . 1 1 1 6 . . . 3 3 . . . . . . Average Corruption 1 | . . . . . . . . . . . . . . 2 . 1 1 1 1 . . . 2 3 . . . . . . Corruption Purged . | . . . . . . . . . . . . . . . . . . . . . . . . . . . . . . . Corruption Blocked 35 | . . . . . . . . . . . . . . 8 . . . . . . . . . . . . . . 27 . Effects 10 | . . . . . . . . . . . . . . 1 . 3 3 . 2 . . . . 1 . . . . . . Message Errors 2 | . . . . . . . . . . . . . . 1 . 1 . . . . . . . . . . . . . . Matter Fused 4 | . . . . . . . . . . . . . . . . 1 2 . . . . . . 1 . . . . . . Heat Flow Errors 2 | . . . . . . . . . . . . . . . . . 1 . 1 . . . . . . . . . . . Data Loss (minor) 1 | . . . . . . . . . . . . . . . . 1 . . . . . . . . . . . . . . Data Loss (major) 1 | . . . . . . . . . . . . . . . . . . . 1 . . . . . . . . . . . Overload Shots . | . . . . . . . . . . . . . . . . . . . . . . . . . . . . . . . Overflow Damage 2705 | . . 4 . . . . . 68 . 139 . . . . . . . . . 46 33 . 28 503 130 101 115 69 1034 435 Projectiles 639 | . . . . . . . . . . . . . . . . . . . . . 12 . . . . . . . 233 394 Explosions 354 | . . 4 . . . . . . . . . . . . . . . . . 46 21 . . . . . . . 242 41 Melee 1712 | . . . . . . . . 68 . 139 . . . . . . . . . . . . 28 503 130 101 115 69 559 . Knockbacks . | . . . . . . . . . . . . . . . . . . . . . . . . . . . . . . . Impact . | . . . . . . . . . . . . . . . . . . . . . . . . . . . . . . . Kinetic . | . . . . . . . . . . . . . . . . . . . . . . . . . . . . . . . Secondary . | . . . . . . . . . . . . . . . . . . . . . . . . . . . . . . . Self-Inflicted Damage 155 | . . 40 . . . . . . . . . . . . . . . . . . . . . . . . . . . 115 Shots 3 | . . 1 . . . . . . . . . . . . . . . . . . . . . . . . . . . 2 Rammed 1 | . . 1 . . . . . . . . . . . . . . . . . . . . . . . . . . . . Targets Rammed 3 | . 1 2 . . . . . . . . . . . . . . . . . . . . . . . . . . . . Kicked 2 | . 1 1 . . . . . . . . . . . . . . . . . . . . . . . . . . . . Crushed . | . . . . . . . . . . . . . . . . . . . . . . . . . . . . . . . Highest Temperature 211 | . . 47 5 6 2 . 78 148 90 3 3 12 106 95 . . 199 . 152 1 46 . 211 205 116 . 159 198 198 178 Average Temperature 132 | . . 20 3 2 2 . 40 25 37 3 3 9 42 34 . . 93 . 91 1 21 . 146 64 33 . 58 54 174 139 Received Heat Transfer 659 | . . 94 69 . . . 9 27 . 9 9 18 . . . 21 21 . . 39 87 . 121 9 9 9 . . 93 15 Siege Activations . | . . . . . . . . . . . . . . . . . . . . . . . . . . . . . . . Robots Corrupted . | . . . . . . . . . . . . . . . . . . . . . . . . . . . . . . . Combat Hostiles . | . . . . . . . . . . . . . . . . . . . . . . . . . . . . . . . Parts Fried 4 | . . . . . . . . 1 . 2 . . . . . . . . . . . . . . . . . . 1 . Impact Corruptions 3 | . . . . . . . . 1 . 2 . . . . . . . . . . . . . . . . . . . . Robots Melted 2 | . . . . . . . . . . . . . . . . . . . . . . . . . . . . . . 2 Combat Hostiles 2 | . . . . . . . . . . . . . . . . . . . . . . . . . . . . . . 2 Parts Melted 6 | . . . . . . 1 . . . . 2 . . . . 2 . . . . . . . . . . . . . 1 Heat Transferred 8316 | . . . 296 . . 74 . . . . 296 222 . . . . . . . . . . . . . . . . 3931 3497 Parts Sabotaged . | . . . . . . . . . . . . . . . . . . . . . . . . . . . . . . . Parts Stolen 1 | . . . . . . . . . . . . 1 . . . . . . . . . . . . . . . . . . Parts Stripped . | . . . . . . . . . . . . . . . . . . . . . . . . . . . . . . . Power Chain Reactions . | . . . . . . . . . . . . . . . . . . . . . . . . . . . . . . . Missiles Intercepted 3 | . . . . . . . . . . . . . . . . . . . . . . . . . . . . . 3 . Alert | -11 -10 -10 -9 -9 -9 -8 -8 -8 -8 -6 -6 -6 -6 -5 -5 -5 -5 -5 -5 -4 -4 -4 -3 -3 -3 -2 -2 -1 -1 -1 ------- Run | Jun Mat Min Mat Min Exi Min Mat Sto Rec Fac Low Low Zio Pro Fac Ext Cet Arc Hub Fac Arm Lab Res Qua Sec Res Tes Acc Com Ac0 Peak Influence 1716 | 10 42 120 229 130 . 30 15 231 240 711 . . . . 262 1202 817 428 432 966 1018 . 411 479 429 302 353 382 1716 . Initial 672 | . 6 16 11 88 . . 11 5 90 252 . . . . 47 128 672 308 149 179 473 . . 95 269 240 169 211 232 . Average 320 | 7 35 39 112 117 . 25 8 73 96 463 . . . . 139 402 733 374 362 641 593 . 202 273 339 277 258 278 896 . Maximum Alert Level 5 | . . . 1 . . . . 1 1 3 . . . . 1 4 3 2 2 3 3 . 2 2 2 1 1 1 5 . Low Security (%) 26 | 100 100 100 77 100 . 100 100 97 77 . . . . . 73 15 . . 7 17 . . 34 29 . . 26 25 . . Level 1 26 | . . . 22 . . . . 2 22 27 . . . . 26 62 . 61 29 1 . . 58 56 97 100 73 74 4 . Level 2 7 | . . . . . . . . . . 68 . . . . . 8 23 38 63 36 87 . 7 14 2 . . . 1 . Level 3 4 | . . . . . . . . . . 4 . . . . . 8 76 . . 44 12 . . . . . . . 4 . Level 4 2 | . . . . . . . . . . . . . . . . 6 . . . . . . . . . . . . 5 . Level 5 31 | . . . . . . . . . . . . . . . . . . . . . . . . . . . . . 82 . High Security . | . . . . . . . . . . . . . . . . . . . . . . . . . . . . . 1 . Max Security . | . . . . . . . . . . . . . . . . . . . . . . . . . . . . . . . Squads Dispatched 40 | . . 1 2 . . . 2 1 . 7 . . . . 2 4 . . 1 2 2 . 9 . 1 . . 2 4 . Investigation 20 | . . 1 2 . . . 1 1 . 5 . . . . 1 3 . . . 1 1 . 3 . 1 . . . . . Extermination 6 | . . . . . . . . . . 1 . . . . . . . . . . . . 2 . . . . 2 1 . Reinforcement 11 | . . . . . . . 1 . . 1 . . . . . . . . 1 1 1 . 4 . . . . . 2 . Assault 2 | . . . . . . . . . . . . . . . . 1 . . . . . . . . . . . . 1 . Garrison 1 | . . . . . . . . . . . . . . . 1 . . . . . . . . . . . . . . . Intercept . | . . . . . . . . . . . . . . . . . . . . . . . . . . . . . . . Searches Triggered 1 | . . . . . . . . . . . . . . . . . . . . . . . . . . . . . 1 . Construction Impeded 2 | . . . . . . . . . . 1 . . . . . . . . . 1 . . . . . . . . . . Haulers Reinforced 1 | . . . . . . . . . . . . . . . . . . . . . . . 1 . . . . . . . Active Scanning Responses . | . . . . . . . . . . . . . . . . . . . . . . . . . . . . . . . Cargo Convoy Interrupts . | . . . . . . . . . . . . . . . . . . . . . . . . . . . . . . . Stealth | -11 -10 -10 -9 -9 -9 -8 -8 -8 -8 -6 -6 -6 -6 -5 -5 -5 -5 -5 -5 -4 -4 -4 -3 -3 -3 -2 -2 -1 -1 -1 --------- Run | Jun Mat Min Mat Min Exi Min Mat Sto Rec Fac Low Low Zio Pro Fac Ext Cet Arc Hub Fac Arm Lab Res Qua Sec Res Tes Acc Com Ac0 Distress Signals 33 | . 1 . 2 . . . . 1 . . . . . . . 2 2 . . 2 1 . 1 1 1 . . . 19 . Communications Jammed 60 | . . . . . . . . . . . . . . . . . . . . . . . 22 1 9 . . 23 5 . Distress Signals 56 | . . . . . . . . . . . . . . . . . . . . . . . 20 1 9 . . 23 3 . Times Spotted 478 | . 5 23 11 8 . 1 1 10 . 20 10 10 . 2 4 26 15 4 12 40 29 . 73 31 10 4 4 49 44 32 Peak Tracking Total 22 | . 4 13 11 4 . 1 2 11 . 6 11 7 . 1 2 6 6 1 9 13 22 . 11 7 9 2 3 20 6 16 Tactical Retreats 63 | . . 1 1 1 . . . 1 . 4 5 1 . . . . 2 . . 3 3 . 18 6 . 1 . 9 5 2 Traps | -11 -10 -10 -9 -9 -9 -8 -8 -8 -8 -6 -6 -6 -6 -5 -5 -5 -5 -5 -5 -4 -4 -4 -3 -3 -3 -2 -2 -1 -1 -1 ------- Run | Jun Mat Min Mat Min Exi Min Mat Sto Rec Fac Low Low Zio Pro Fac Ext Cet Arc Hub Fac Arm Lab Res Qua Sec Res Tes Acc Com Ac0 Traps Triggered 12 | . . . . . . . . . . 1 . . . . . 2 . . . . . . 2 3 . . . 3 1 . Indirectly . | . . . . . . . . . . . . . . . . . . . . . . . . . . . . . . . Trap Hack Attempts . | . . . . . . . . . . . . . . . . . . . . . . . . . . . . . . . Triggered . | . . . . . . . . . . . . . . . . . . . . . . . . . . . . . . . Disarmed . | . . . . . . . . . . . . . . . . . . . . . . . . . . . . . . . Reprogrammed . | . . . . . . . . . . . . . . . . . . . . . . . . . . . . . . . Reused . | . . . . . . . . . . . . . . . . . . . . . . . . . . . . . . . Traps Extracted . | . . . . . . . . . . . . . . . . . . . . . . . . . . . . . . . Installed . | . . . . . . . . . . . . . . . . . . . . . . . . . . . . . . . Triggered 4 | . . . . . . . . . . . 2 . . 2 . . . . . . . . . . . . . . . . Machines | -11 -10 -10 -9 -9 -9 -8 -8 -8 -8 -6 -6 -6 -6 -5 -5 -5 -5 -5 -5 -4 -4 -4 -3 -3 -3 -2 -2 -1 -1 -1 ---------- Run | Jun Mat Min Mat Min Exi Min Mat Sto Rec Fac Low Low Zio Pro Fac Ext Cet Arc Hub Fac Arm Lab Res Qua Sec Res Tes Acc Com Ac0 Machines Disabled 45 | . . . . . . . . 4 . . . . . 1 . . . . 4 3 2 4 4 4 2 . 4 . 5 8 Max in Single Turn 2 | . . . . . . . . 1 . . . . . 1 . . . . 2 1 1 1 . 1 1 . 1 . 1 1 Network Hub 1 | . . . . . . . . . . . . . . . . . . . 1 . . . . . . . . . . . Machines Repaired . | . . . . . . . . . . . . . . . . . . . . . . . . . . . . . . . Machines Sabotaged . | . . . . . . . . . . . . . . . . . . . . . . . . . . . . . . . Overloaded Fab Kills . | . . . . . . . . . . . . . . . . . . . . . . . . . . . . . . . Hacking | -11 -10 -10 -9 -9 -9 -8 -8 -8 -8 -6 -6 -6 -6 -5 -5 -5 -5 -5 -5 -4 -4 -4 -3 -3 -3 -2 -2 -1 -1 -1 --------- Run | Jun Mat Min Mat Min Exi Min Mat Sto Rec Fac Low Low Zio Pro Fac Ext Cet Arc Hub Fac Arm Lab Res Qua Sec Res Tes Acc Com Ac0 Machines Accessed 44 | . 3 1 4 . 2 . 2 4 7 5 . . . . . 5 . . . . 1 . 1 . 2 . . 4 3 . Terminals 28 | . 3 . 3 . . . 2 3 2 3 . . . . . 4 . . . . . . . . 2 . . 3 3 . Fabricators 1 | . . . . . . . . . . . . . . . . . . . . . 1 . . . . . . . . . Repair Stations 1 | . . . . . . . . . . . . . . . . . . . . . . . . . . . . 1 . . Recycling Units 10 | . . . 1 . . . . 1 5 2 . . . . . 1 . . . . . . . . . . . . . . Scanalyzers 1 | . . . . . . . . . . . . . . . . . . . . . . . 1 . . . . . . . Garrison Access . | . . . . . . . . . . . . . . . . . . . . . . . . . . . . . . . Total Hacks 87 | . 8 1 13 . 2 . 4 5 11 14 . . . . . 13 . . . . 1 . 2 . 5 . . 5 3 . Successful 40 | . 2 1 3 . 2 . 2 4 10 3 . . . . . 3 . . . . 1 . . . 2 . . 4 3 . Failed 47 | . 6 . 10 . . . 2 1 1 11 . . . . . 10 . . . . . . 2 . 3 . . 1 . . Catastrophic 8 | . 1 . 1 . . . . . . 2 . . . . . 3 . . . . . . 1 . . . . . . . Database Lockouts . | . . . . . . . . . . . . . . . . . . . . . . . . . . . . . . . Manual 155 | . 8 . 11 . 1 . 3 4 9 10 . . . . 2 10 1 . 10 8 3 . 13 10 . 11 5 19 17 . Terminals 66 | . 8 . 12 . . . 4 4 5 9 . . . . . 12 . . . . . . . . 5 . . 4 3 . Fabricators 1 | . . . . . . . . . . . . . . . . . . . . . 1 . . . . . . . . . Repair Stations 1 | . . . . . . . . . . . . . . . . . . . . . . . . . . . . 1 . . Recycling Units 14 | . . . 1 . . . . 1 6 5 . . . . . 1 . . . . . . . . . . . . . . Scanalyzers 2 | . . . . . . . . . . . . . . . . . . . . . . . 2 . . . . . . . Garrison Access . | . . . . . . . . . . . . . . . . . . . . . . . . . . . . . . . Terminal Hacks 25 | . 1 1 2 . 2 . 2 2 4 1 . . . . . 2 . . . . . . . . 2 . . 3 3 . Record 1 | . . . . . 1 . . . . . . . . . . . . . . . . . . . . . . . . . Part Schematic 1 | . . . . . . . . . 1 . . . . . . . . . . . . . . . . . . . . . Open Door 11 | . . 1 . . . . . 2 . . . . . . . 2 . . . . . . . . 2 . . 3 1 . Branch Access Points 4 | . 1 . 1 . . . 1 . . 1 . . . . . . . . . . . . . . . . . . . . Recycling Unit Index 1 | . . . . . . . . . 1 . . . . . . . . . . . . . . . . . . . . . Unreport Threat 3 | . . . . . . . 1 . 2 . . . . . . . . . . . . . . . . . . . . . Locate Traps 1 | . . . 1 . . . . . . . . . . . . . . . . . . . . . . . . . . . EX-Prototype ID Bank 1 | . . . . . 1 . . . . . . . . . . . . . . . . . . . . . . . . . Disengage Seal 2 | . . . . . . . . . . . . . . . . . . . . . . . . . . . . . 2 . Fabricator Hacks . | . . . . . . . . . . . . . . . . . . . . . . . . . . . . . . . Repair Station Hacks 1 | . . . . . . . . . . . . . . . . . . . . . . . . . . . . 1 . . Refit 1 | . . . . . . . . . . . . . . . . . . . . . . . . . . . . 1 . . Recycling Unit Hacks . | . . . . . . . . . . . . . . . . . . . . . . . . . . . . . . . Scanalyzer . | . . . . . . . . . . . . . . . . . . . . . . . . . . . . . . . Garrison Access Hacks . | . . . . . . . . . . . . . . . . . . . . . . . . . . . . . . . Unauthorized Hacks 14 | . 1 . 1 . . . . 2 6 2 . . . . . 1 . . . . 1 . . . . . . . . . Terminals 4 | . 1 . . . . . . 1 1 1 . . . . . . . . . . . . . . . . . . . . Assimilate 1 | . . . . . . . . . . 1 . . . . . . . . . . . . . . . . . . . . Botnet 3 | . 1 . . . . . . 1 1 . . . . . . . . . . . . . . . . . . . . . Fabricators 1 | . . . . . . . . . . . . . . . . . . . . . 1 . . . . . . . . . Overload 1 | . . . . . . . . . . . . . . . . . . . . . 1 . . . . . . . . . Repair Stations . | . . . . . . . . . . . . . . . . . . . . . . . . . . . . . . . Recycling Units 9 | . . . 1 . . . . 1 5 1 . . . . . 1 . . . . . . . . . . . . . . Tunnel 9 | . . . 1 . . . . 1 5 1 . . . . . 1 . . . . . . . . . . . . . . Scanalyzers . | . . . . . . . . . . . . . . . . . . . . . . . . . . . . . . . Garrison Access . | . . . . . . . . . . . . . . . . . . . . . . . . . . . . . . . Data Cores Recovered 1 | . . . . . . . . . . . . . . . . . . . . . . . . . . . 1 . . . Used . | . . . . . . . . . . . . . . . . . . . . . . . . . . . . . . . Hacking Detections 21 | . 3 . 3 . . . 2 1 . 4 . . . . . 3 1 . . . . . 1 . 1 . . 2 . . Full Trace Events 7 | . 1 . 1 . . . 1 . . 3 . . . . . 1 . . . . . . . . . . . . . . Feedback Events . | . . . . . . . . . . . . . . . . . . . . . . . . . . . . . . . Feedback Blocked . | . . . . . . . . . . . . . . . . . . . . . . . . . . . . . . . Robot Schematics Acquired . | . . . . . . . . . . . . . . . . . . . . . . . . . . . . . . . Robots Built . | . . . . . . . . . . . . . . . . . . . . . . . . . . . . . . . Authchips . | . . . . . . . . . . . . . . . . . . . . . . . . . . . . . . . Time . | . . . . . . . . . . . . . . . . . . . . . . . . . . . . . . . Total Robot Build Rating . | . . . . . . . . . . . . . . . . . . . . . . . . . . . . . . . Part Schematics Acquired 19 | . . . . . . . . . 1 . . . . . . . . . . . . . . 13 5 . . . . . Parts Built . | . . . . . . . . . . . . . . . . . . . . . . . . . . . . . . . Authchips . | . . . . . . . . . . . . . . . . . . . . . . . . . . . . . . . Time . | . . . . . . . . . . . . . . . . . . . . . . . . . . . . . . . Total Part Build Rating . | . . . . . . . . . . . . . . . . . . . . . . . . . . . . . . . Parts Repaired . | . . . . . . . . . . . . . . . . . . . . . . . . . . . . . . . Time . | . . . . . . . . . . . . . . . . . . . . . . . . . . . . . . . Parts Recycled . | . . . . . . . . . . . . . . . . . . . . . . . . . . . . . . . Recycled Matter . | . . . . . . . . . . . . . . . . . . . . . . . . . . . . . . . Retrieved Matter . | . . . . . . . . . . . . . . . . . . . . . . . . . . . . . . . Retrieved Components . | . . . . . . . . . . . . . . . . . . . . . . . . . . . . . . . Parts Scanalyzed . | . . . . . . . . . . . . . . . . . . . . . . . . . . . . . . . Part Schematics Acquired . | . . . . . . . . . . . . . . . . . . . . . . . . . . . . . . . Parts Damaged . | . . . . . . . . . . . . . . . . . . . . . . . . . . . . . . . Bothacking | -11 -10 -10 -9 -9 -9 -8 -8 -8 -8 -6 -6 -6 -6 -5 -5 -5 -5 -5 -5 -4 -4 -4 -3 -3 -3 -2 -2 -1 -1 -1 ------------ Run | Jun Mat Min Mat Min Exi Min Mat Sto Rec Fac Low Low Zio Pro Fac Ext Cet Arc Hub Fac Arm Lab Res Qua Sec Res Tes Acc Com Ac0 Used RIF Installer . | . . . . . . . . . . . . . . . . . . . . . . . . . . . . . . . Robots Hacked . | . . . . . . . . . . . . . . . . . . . . . . . . . . . . . . . Non-combat . | . . . . . . . . . . . . . . . . . . . . . . . . . . . . . . . Combat . | . . . . . . . . . . . . . . . . . . . . . . . . . . . . . . . Robot Hacks Applied . | . . . . . . . . . . . . . . . . . . . . . . . . . . . . . . . Relay Couplers Released . | . . . . . . . . . . . . . . . . . . . . . . . . . . . . . . . Fabnet Peak Effective % . | . . . . . . . . . . . . . . . . . . . . . . . . . . . . . . . Robots Rewired 8 | . . . . . . . . . . . . . . . . 8 . . . . . . . . . . . . . . Allies Hacked 3 | . . . . . . . . . . . . . . . . . . . . . . . . . . . . . 3 . Hacks Repelled . | . . . . . . . . . . . . . . . . . . . . . . . . . . . . . . . Allies | -11 -10 -10 -9 -9 -9 -8 -8 -8 -8 -6 -6 -6 -6 -5 -5 -5 -5 -5 -5 -4 -4 -4 -3 -3 -3 -2 -2 -1 -1 -1 -------- Run | Jun Mat Min Mat Min Exi Min Mat Sto Rec Fac Low Low Zio Pro Fac Ext Cet Arc Hub Fac Arm Lab Res Qua Sec Res Tes Acc Com Ac0 Total Allies 121 | . . 3 . . . . . . . 1 . . 6 . 3 23 5 . 4 3 2 . 11 . . 4 . 4 52 . Largest Group 33 | . . 3 . . . . . . . 1 . . 6 5 3 20 12 2 6 2 2 . 4 . . 4 . 3 33 . Highest-Rated Group 3409 | . . 40 . . . . . . . 26 . . 233 196 210 1135 688 192 417 100 162 . 162 . . 372 . 271 3409 . Highest-Rated Ally 269 | . . 16 . . . . . . . 26 . . 51 51 70 159 159 96 96 50 81 . 81 . . 115 . 269 269 . Zionite Dispatches 22 | . . . . . . . . . . . . . . . 1 4 . . 3 2 1 . 5 . . 2 . 4 . . Heavy 2 | . . . . . . . . . . . . . . . . . . . 1 . . . . . . . . 1 . . Light 5 | . . . . . . . . . . . . . . . 1 3 . . . . . . . . . 1 . . . . Recon 1 | . . . . . . . . . . . . . . . . . . . . . . . . . . . . 1 . . Fire 2 | . . . . . . . . . . . . . . . . 1 . . . . . . 1 . . . . . . . Hacker 2 | . . . . . . . . . . . . . . . . . . . . . 1 . 1 . . . . . . . Demo 2 | . . . . . . . . . . . . . . . . . . . . 1 . . 1 . . . . . . . Experimental 1 | . . . . . . . . . . . . . . . . . . . . . . . . . . . . 1 . . Thermal Resupply 1 | . . . . . . . . . . . . . . . . . . . . . . . . . . . . 1 . . Explosive Resupply 1 | . . . . . . . . . . . . . . . . . . . . 1 . . . . . . . . . . Offense Resupply 1 | . . . . . . . . . . . . . . . . . . . 1 . . . . . . . . . . . Infowar Resupply 1 | . . . . . . . . . . . . . . . . . . . . . . . 1 . . . . . . . Hacking Resupply 1 | . . . . . . . . . . . . . . . . . . . 1 . . . . . . . . . . . Hover Resupply 1 | . . . . . . . . . . . . . . . . . . . . . . . 1 . . . . . . . Zionite Resupply 1 | . . . . . . . . . . . . . . . . . . . . . . . . . . 1 . . . . Total Orders 25 | . . . . . . . . . . . . . . . . 2 1 2 1 . . . 1 . . 1 . 1 16 . STAY 10 | . . . . . . . . . . . . . . . . . . . . . . . . . . . . . 10 . ROAM 4 | . . . . . . . . . . . . . . . . 2 1 1 . . . . . . . . . . . . FOLLOW 5 | . . . . . . . . . . . . . . . . . . 1 . . . . . . . . . . 4 . DROP 4 | . . . . . . . . . . . . . . . . . . . 1 . . . 1 . . 1 . 1 . . EXPLORE 2 | . . . . . . . . . . . . . . . . . . . . . . . . . . . . . 2 . Ally Attacks 731 | . . 21 . . . . . . . . . . . 17 21 217 78 28 19 9 . . 23 . . . . 6 292 . Total Damage 39646 | . . 238 . . . . . . . . . . . 420 260 5488 1932 1249 676 1085 . . 1180 . . . . 558 26560 . Kills 160 | . . 8 . . . . . . . . . . . 3 3 36 9 4 6 6 . . 10 . . . . 2 73 . Allies Corrupted 9 | . . . . . . . . . . . . . . 1 . . . . 2 . . . . . . . . 3 3 . Allies Melted . | . . . . . . . . . . . . . . . . . . . . . . . . . . . . . . . Intel | -11 -10 -10 -9 -9 -9 -8 -8 -8 -8 -6 -6 -6 -6 -5 -5 -5 -5 -5 -5 -4 -4 -4 -3 -3 -3 -2 -2 -1 -1 -1 ------- Run | Jun Mat Min Mat Min Exi Min Mat Sto Rec Fac Low Low Zio Pro Fac Ext Cet Arc Hub Fac Arm Lab Res Qua Sec Res Tes Acc Com Ac0 Robot Analysis Total . | . . . . . . . . . . . . . . . . . . . . . . . . . . . . . . . Derelict Logs Recovered 7 | . . 1 . 2 . . . . . . 1 3 . . . . . . . . . . . . . . . . . . Drone Launches 2 | . . . . . . . . . . . . . . . . . . . . . . . . . . . . . 2 . Drone Recoveries . | . . . . . . . . . . . . . . . . . . . . . . . . . . . . . . . Zionite Intel Received 13 | . . . . . . . . . . . . . . . . . . . 1 1 . . . 2 . 1 1 2 5 . Branch Access 1 | . . . . . . . . . . . . . . . . . . . . 1 . . . . . . . . . . Component Stockpiles 1 | . . . . . . . . . . . . . . . . . . . . . . . . 1 . . . . . . Component Schematics 1 | . . . . . . . . . . . . . . . . . . . . . . . . 1 . . . . . . Trap Installations 1 | . . . . . . . . . . . . . . . . . . . . . . . . . . . . . 1 . Active Terminals 2 | . . . . . . . . . . . . . . . . . . . . . . . . . . . . 1 1 . Active Garrisons 2 | . . . . . . . . . . . . . . . . . . . . . . . . . . . 1 . 1 . Depthwide Sectors/0 1 | . . . . . . . . . . . . . . . . . . . . . . . . . . . . . 1 . Depthwide Sectors/-1 4 | . . . . . . . . . . . . . . . . . . . 1 . . . . . . 1 . 1 1 . Exploration | -11 -10 -10 -9 -9 -9 -8 -8 -8 -8 -6 -6 -6 -6 -5 -5 -5 -5 -5 -5 -4 -4 -4 -3 -3 -3 -2 -2 -1 -1 -1 ------------- Run | Jun Mat Min Mat Min Exi Min Mat Sto Rec Fac Low Low Zio Pro Fac Ext Cet Arc Hub Fac Arm Lab Res Qua Sec Res Tes Acc Com Ac0 Turns Passed 12599 | 55 252 966 212 172 107 13 32 178 99 322 188 93 347 233 102 983 201 85 147 141 103 670 814 293 196 159 242 741 4018 435 Spaces Moved 22308 | 26 77 455 196 477 305 38 105 419 374 1023 521 356 625 483 179 716 217 51 255 568 333 454 2454 960 655 472 608 1806 5590 1510 Core 140 | . . . . . . . . . . . . . . . . . . . . . . 66 . . . . . . 74 . Treads 275 | . . 256 . . . . . . . . . . . . . . . . . . . . . . . . . . 19 . Legs 450 | 26 77 199 60 . . . . . . . . . . . . . . . . . . . . . . . . . 88 . Wheels . | . . . . . . . . . . . . . . . . . . . . . . . . . . . . . . . Hover . | . . . . . . . . . . . . . . . . . . . . . . . . . . . . . . . Flight 21411 | . . . 136 477 305 38 105 419 374 1023 521 356 625 483 179 716 217 51 255 568 333 388 2454 960 623 472 608 1806 5409 1510 Fastest Speed 6 | 120 120 120 34 31 31 31 27 23 23 23 23 23 23 23 20 20 20 20 20 20 20 24 15 15 15 14 16 14 14 6 Average Speed 28 | 120 120 142 71 32 31 31 27 26 23 23 23 23 23 23 20 20 20 20 20 20 23 90 22 15 15 16 16 17 31 14 Slowest Speed 1150 | 120 120 160 147 34 31 31 27 27 23 23 23 23 23 23 20 90 20 20 20 20 24 500 97 15 15 19 20 20 1150 21 Overloaded Moves 353 | . . . . . . . . . . . . . . . . . . . . . . . . . . . . . . 353 Propulsion Burnouts 1 | . . . . . . . . . . . . . . . . . . . . . . . . . . . . . . 1 Robots Hopped 248 | . . . 7 5 . . . 6 7 23 . 3 . . . 17 . . 1 5 6 . 49 12 2 . 4 44 42 15 Cave-ins Triggered 1 | . . . . . . . . . . . . . . . . . . . . . . . . . 1 . . . . . Teleports 6 | . . . . . . . . . . . . . . . . . . . . . . . 1 . 3 . . . 1 1 Spacefolds 15 | . . . . . . . . . . . . . . . . . . . . . . . . . 15 . . . . . Exploration Rate (%) 52 | 3 16 89 27 86 69 10 15 65 92 37 73 57 79 67 7 79 56 71 35 20 38 92 72 64 53 11 60 53 76 58 Regions Visited 30 Branch Regions 21 Pre-discovered Areas 22 | . . 1 1 . 1 . . 1 5 1 . 1 1 . . 1 . . 5 . . . . . . 2 . . 2 . Known Exits Taken 16 | . 1 . 1 . . 1 1 1 . 1 1 1 1 1 1 1 1 1 . 1 . . . . 1 . . . . . Unknown Exits Taken 14 | 1 . 1 . 1 1 . . . 1 . . . . . . . . . 1 . 1 1 1 1 . 1 1 1 1 . Scrap Searched 25 | . . 1 . 2 . 1 . . . . 5 9 3 4 . . . . . . . . . . . . . . . . Spaces Dug 111 | . . 10 . 14 . . . 4 . 4 4 . . . . . . . . . 1 . 14 2 8 . 3 15 13 19 Terrain Destroyed 572 | . . 67 . 14 . . . 4 . 39 6 1 . 9 4 5 4 . 16 47 21 . 14 2 8 . 3 15 82 211 Melee 67 | . . . . . . . . 4 . 4 4 . . . . . . . . . 1 . 14 2 8 . 3 15 12 . Projectile 71 | . . . . . . . . . . . 2 1 . 9 4 5 4 . 1 2 3 . . . . . . . 4 36 AOE 434 | . . 67 . 14 . . . . . 35 . . . . . . . . 15 45 17 . . . . . . . 66 175 Terrain Rammed . | . . . . . . . . . . . . . . . . . . . . . . . . . . . . . . . Walls Destroyed . | . . . . . . . . . . . . . . . . . . . . . . . . . . . . . . . Machines Disabled . | . . . . . . . . . . . . . . . . . . . . . . . . . . . . . . . Actions | -11 -10 -10 -9 -9 -9 -8 -8 -8 -8 -6 -6 -6 -6 -5 -5 -5 -5 -5 -5 -4 -4 -4 -3 -3 -3 -2 -2 -1 -1 -1 --------- Run | Jun Mat Min Mat Min Exi Min Mat Sto Rec Fac Low Low Zio Pro Fac Ext Cet Arc Hub Fac Arm Lab Res Qua Sec Res Tes Acc Com Ac0 Total 27514 | 37 235 751 240 487 319 38 108 454 380 1071 583 363 827 603 245 1525 365 122 349 587 344 690 2623 1054 692 530 715 2133 7384 1660 Wait 3990 | 1 154 249 9 7 . 1 . 3 10 45 45 11 188 116 63 725 132 64 88 10 1 209 125 20 1 7 6 289 1377 34 Move 21795 | 25 76 454 182 466 304 37 104 407 359 977 520 349 624 482 178 682 216 50 252 557 321 453 2359 937 633 471 599 1727 5511 1483 Hop 217 | . . . 6 5 . . . 5 7 22 . 3 . . . 16 . . 1 5 5 . 45 10 2 . 4 34 36 11 Pick Up 87 | 1 2 4 8 1 4 . 1 4 1 1 2 . 3 . 1 3 . . . 2 . 2 6 6 7 1 5 2 18 2 Fast Attach 229 | 1 . 5 4 3 2 . . 4 . 7 2 . 5 3 . 7 2 . 1 3 3 5 9 6 10 21 37 26 58 5 Attach 113 | . . 4 4 1 1 . 2 2 1 2 3 . 2 . 1 . . . 3 2 1 3 22 7 11 . 3 1 29 8 Detach 107 | . . . 2 . 1 . . 1 . 4 3 . 1 1 . 1 . . 3 2 1 1 19 7 5 3 5 2 41 4 Swap 45 | . . 5 1 1 . . . 4 . 1 . . . . 1 1 1 . . . 1 . 6 1 6 . 1 2 10 3 Drop 242 | 2 1 9 12 2 7 . 1 9 2 3 4 . 4 1 1 8 4 . . 2 3 5 10 8 4 18 41 25 52 4 Fire 370 | 7 1 19 12 1 . . . . . 2 . . . . . 13 10 8 1 4 7 . . . . . . . 179 106 Melee 213 | . . . . . . . . 15 . 7 4 . . . . . . . . . 1 12 22 22 13 9 14 25 69 . Ram . | . . . . . . . . . . . . . . . . . . . . . . . . . . . . . . . Kick 2 | . 1 1 . . . . . . . . . . . . . . . . . . . . . . . . . . . . Crush 1 | . . 1 . . . . . . . . . . . . . . . . . . . . . . . . . . . . Escape Stasis 69 | . . . . . . . . . . . . . . . . 36 . . . . . . . 30 . . . . 3 . Rewire 34 | . . . . . . . . . . . . . . . . 33 . . . . . . . . . . . . 1 . Trap . | . . . . . . . . . . . . . . . . . . . . . . . . . . . . . . . Miscellaneous . | . . . . . . . . . . . . . . . . . . . . . . . . . . . . . . . Route ------- -11/Junkyard -10/Materials -10/Mines -9/Materials (discovered 3 exits: *Mat / *Min x2) -9/Mines (discovered 3 exits: *Mat x2 / *Exi) -9/Exiles -8/Mines -8/Materials (discovered 3 exits: [*Fac] / *Sto x2) -8/Storage -8/Recycling -6/Factory (discovered 3 exits: *Fac / *Low x2) -6/Lower Caves -6/Lower Caves -6/Zion -5/Proximity Caves -5/Factory (discovered 3 exits: *Upp / *Ext x2) -5/Extension (discovered 2 exits: *Fac / *Cet) -5/Cetus (discovered 2 exits: *Fac / *Arc) -5/Archives (discovered 2 exits: *Hub x2) -5/Hub_04(d) -4/Factory (discovered 4 exits: *Res / *Upp x2 / *Arm) -4/Armory (discovered 2 exits: *Res / [*Lab]) -4/Lab -3/Research (discovered 4 exits: *Res x3 / *Qua) -3/Quarantine (discovered 2 exits: *Res / *Sec) -3/Section 7 -2/Research -2/Testing -1/Access -1/Command (discovered 3 exits: [*Sur x2] / [*Ac0]) -1/Access_0 Near Former Tau Ceti IV History --------- Turn | Location | Event 21 | -11/Junkyard | Discovered new exit (range 3) 56 | -11/Junkyard | Entered Materials 106 | -10/Materials | Identified exit to Mines 308 | -10/Materials | Entered Mines 349 | -10/Mines | Build established: Mutant 424 | -10/Mines | Assisted by bots powering up and referring to "LRC-V3" 534 | -10/Mines | Assembled infested the area 539 | -10/Mines | Assisted by a Guerilla fighting off Assembled 574 | -10/Mines | Destroyed 11 combat bots 576 | -10/Mines | Met a Derelict shopkeep closing up shop 613 | -10/Mines | Lost 3 parts (1p1u1w) 1157 | -10/Mines | Discovered new exit (range 11) 1274 | -10/Mines | Entered Materials 1274 | -9/Materials | Evolved 2 slots: Propulsion x2 1440 | -9/Materials | Identified exit to Mines 1455 | -9/Materials | Discovered new exit (range 11) 1486 | -9/Materials | Entered Mines 1496 | -9/Mines | Discovered new exit (range 7) 1503 | -9/Mines | Met a Derelict bent on vengeance 1558 | -9/Mines | Received a Rocket Launcher from a helpful Derelict 1588 | -9/Mines | Identified exit to Materials 1657 | -9/Mines | Deemed a non-threat by the Exiles lab entrance 1657 | -9/Mines | Discovered new exit (range 5) 1658 | -9/Mines | Entered Exiles 1666 | -9/Exiles | Met 8R-AWN 1671 | -9/Exiles | Met EX-HEX 1683 | -9/Exiles | Met EX-DEC 1706 | -9/Exiles | Learned location of Zion (-6) 1712 | -9/Exiles | Met EX-BIN 1717 | -9/Exiles | Aligned with FarCom system 1717 | -9/Exiles | Given EX-Vault access code 1725 | -9/Exiles | Opened EX-Vault 1728 | -9/Exiles | Found AWS/Thermal 1730 | -9/Exiles | Found AWS/Gauss 1732 | -9/Exiles | Found Cloak of Protection 1739 | -9/Exiles | Warned to stay clear of 0b10 Research branches 1760 | -9/Exiles | Discovered new exit (range 10) 1765 | -9/Exiles | Stole three prototypes: AWS/Thermal, Cloak of Protection, AWS/Gauss 1765 | -9/Exiles | Entered Mines 1774 | -8/Mines | Discovered exit to Materials (range 5) 1778 | -8/Mines | Entered Materials 1778 | -8/Materials | Evolved 2 slots: Propulsion x1, Utility x1 1785 | -8/Materials | Identified exit to Storage 1798 | -8/Materials | Discovered new exit (range 16) 1810 | -8/Materials | Entered Storage 1811 | -8/Storage | Identified exit to Recycling 1856 | -8/Storage | Build established: Sprinter 1987 | -8/Storage | Used back door to open Recycling access 1988 | -8/Storage | Entered Recycling 1992 | -8/Recycling | Found Scrap Engine 2034 | -8/Recycling | Discovered new exit (range 15) 2087 | -8/Recycling | Entered Factory 2087 | -6/Factory | Evolved 4 slots: Utility x4 2089 | -6/Factory | FarCom data flow suspended 2186 | -6/Factory | Discovered new exit (range 11) 2339 | -6/Factory | Discovered new exit (range 6) 2340 | -6/Factory | Identified exit to Factory 2350 | -6/Factory | Identified exit to Lower Caves 2409 | -6/Factory | Entered Lower Caves 2571 | -6/Lower Caves | Identified exit to Lower Caves 2597 | -6/Lower Caves | Entered another Lower Caves area 2638 | -6/Lower Caves | Attracted the attention of an 0b10 checkpoint 2686 | -6/Lower Caves | Discovered new exit (range 8) 2687 | -6/Lower Caves | Spotted EY-ELR(f) 2687 | -6/Lower Caves | Spotted 3M-LQG(f) 2687 | -6/Lower Caves | Spotted T1-A6M(f) 2689 | -6/Lower Caves | Encountered a Master Thief 2689 | -6/Lower Caves | Encountered a Master Thief 2689 | -6/Lower Caves | Encountered a Master Thief 2689 | -6/Lower Caves | Spotted JG-D4S(f) 2690 | -6/Lower Caves | Encountered a Master Thief 2690 | -6/Lower Caves | AWS/Thermal stolen by Master Thief 2690 | -6/Lower Caves | Identified exit to Zion 2690 | -6/Lower Caves | Entered Zion 2700 | -6/Zion | Discovered new exit (range 11) 2711 | -6/Zion | Visited the Megawrench Repair Shop 2711 | -6/Zion | Megawrench repaired 6 parts 2735 | -6/Zion | Gained Derelict followers 2757 | -6/Zion | Learned Factory emergency access door positions 2792 | -6/Zion | Found Prototype Special Weapon 2792 | -6/Zion | Identified RU-N14's Throwing Claymores 2793 | -6/Zion | Found RU-N14's Throwing Claymores 2796 | -6/Zion | Found RU-N14's Throwing Claymores 2800 | -6/Zion | Found RU-N14's Throwing Claymores 2817 | -6/Zion | Imprinted 2819 | -6/Zion | Declared Zion's savior 2917 | -6/Zion | Identified exit to Proximity Caves 3037 | -6/Zion | Entered Proximity Caves 3037 | -5/Proximity Caves | Accompanied by 5 allies 3268 | -5/Proximity Caves | Discovered exit to Factory (range 8) 3270 | -5/Proximity Caves | Entered Factory 3270 | -5/Factory | Evolved 2 slots: Propulsion x1, Utility x1 3271 | -5/Factory | Identified exit to Extension 3277 | -5/Factory | Zion Light squad teleported in 3341 | -5/Factory | Garrison activated, responded to threat 3349 | -5/Factory | Discovered new exit (range 7) 3349 | -5/Factory | Identified exit to Upper Caves 3372 | -5/Factory | Entered Extension 3372 | -5/Extension | Accompanied by 3 allies 3623 | -5/Extension | Zion Light squad teleported in 3624 | -5/Extension | Zion Light squad teleported in 3767 | -5/Extension | Build established: Commander-Sprinter 4015 | -5/Extension | Spotted B-75 Beast 4017 | -5/Extension | Allies destroyed B-75 Beast 4031 | -5/Extension | Spotted B-75 Beast 4039 | -5/Extension | Allies destroyed B-75 Beast 4044 | -5/Extension | Found Prototype Protection 4044 | -5/Extension | Identified Zio. Weapon Casing 4053 | -5/Extension | Rescued a captive Derelict 4055 | -5/Extension | Rescued a captive Derelict 4103 | -5/Extension | Zion Light squad teleported in 4136 | -5/Extension | Rescued A7 4148 | -5/Extension | Zion Fire squad teleported in 4272 | -5/Extension | First assault squad dispatched 4303 | -5/Extension | Discovered new exit (range 10) 4303 | -5/Extension | Discovered new exit (range 6) 4304 | -5/Extension | Identified exit to Cetus 4355 | -5/Extension | Entered Cetus 4355 | -5/Cetus | Accompanied by 12 allies (A7) 4360 | -5/Cetus | Acquired a Cetus Manufacturing Module code from A7 4376 | -5/Cetus | Spotted Cetus Guard 4376 | -5/Cetus | Spotted Cetus Guard 4376 | -5/Cetus | Spotted Cetus Guard 4390 | -5/Cetus | Spotted Cetus Guard 4392 | -5/Cetus | Allies destroyed Cetus Guard 4397 | -5/Cetus | Allies destroyed Cetus Guard 4403 | -5/Cetus | Allies destroyed Cetus Guard 4405 | -5/Cetus | Allies destroyed Cetus Guard 4420 | -5/Cetus | Started Cetus Manufacturing Module 4422 | -5/Cetus | Discovered new exit (range 15) 4425 | -5/Cetus | Identified exit to Archives 4445 | -5/Cetus | Manufactured an Enhanced Grunt 4468 | -5/Cetus | Spotted Cetus Guard 4470 | -5/Cetus | Manufactured an Enhanced Grunt 4472 | -5/Cetus | Spotted Cetus Guard 4486 | -5/Cetus | Spotted Cetus Guard 4495 | -5/Cetus | Manufactured an Enhanced Grunt 4499 | -5/Cetus | Allies destroyed Cetus Guard 4520 | -5/Cetus | Manufactured an Enhanced Grunt 4524 | -5/Cetus | Discovered new exit (range 16) 4524 | -5/Cetus | Extracted ID and sensor layout for unrecognized location from A7's data core 4545 | -5/Cetus | Manufactured an Enhanced Grunt 4556 | -5/Cetus | Entered Archives 4556 | -5/Archives | Accompanied by 2 allies 4611 | -5/Archives | Discovered new exit (range 15) 4613 | -5/Archives | Discovered new exit (range 14) 4616 | -5/Archives | Identified exit to Hub_04(d) 4641 | -5/Archives | Entered Hub_04(d) 4641 | -5/Hub_04(d) | Accompanied by 2 allies 4644 | -5/Hub_04(d) | Retrieved Zion intel report: Depthwide Sectors/-1 4645 | -5/Hub_04(d) | Zion Heavy squad teleported in 4648 | -5/Hub_04(d) | Zion Offense Resupply teleported in 4673 | -5/Hub_04(d) | Zion Hacking Resupply teleported in 4674 | -5/Hub_04(d) | Build established: Scavenger-Sprinter 4762 | -5/Hub_04(d) | Network Hub disabled 4763 | -5/Hub_04(d) | Spotted Lightning 4780 | -5/Hub_04(d) | Spotted Lightning 4780 | -5/Hub_04(d) | Spotted Lightning 4784 | -5/Hub_04(d) | Discovered new exit (range 16) 4785 | -5/Hub_04(d) | Spotted Lightning 4788 | -5/Hub_04(d) | Entered Factory 4788 | -4/Factory | Evolved 2 slots: Utility x2 4808 | -4/Factory | Zion Demo squad teleported in 4823 | -4/Factory | Spotted B-86 Titan 4858 | -4/Factory | Spotted B-86 Titan 4863 | -4/Factory | Discovered new exit (range 11) 4870 | -4/Factory | Discovered new exit (range 15) 4910 | -4/Factory | Retrieved Zion intel report: Branch Access 4910 | -4/Factory | Identified exit to Upper Caves 4910 | -4/Factory | Identified exit to Armory 4911 | -4/Factory | Zion Explosive Resupply teleported in 4929 | -4/Factory | Entered Armory 4971 | -4/Armory | Spotted B-86 Titan 4993 | -4/Armory | Zion Hacker squad teleported in 5014 | -4/Armory | Found Enh. Force Lance 5017 | -4/Armory | Discovered new exit (range 5) 5027 | -4/Armory | Discovered new exit (range 11) 5032 | -4/Armory | Entered Lab 5032 | -4/Lab | Discovered new exit (range 9) 5035 | -4/Lab | Hidden lab's door opened automatically 5035 | -4/Lab | Sensor layout match revealed 5115 | -4/Lab | Gained access to the hidden lab's interior 5124 | -4/Lab | Found Alien Artifact 5124 | -4/Lab | Identified Integrated Mediator 5124 | -4/Lab | Installed Integrated Mediator, increased core attachment efficiency. 5136 | -4/Lab | Found Alien Artifact 5136 | -4/Lab | Identified Core Regenerator 5136 | -4/Lab | Used Core Regenerator, restored core integrity (+149) 5145 | -4/Lab | Found Alien Artifact 5207 | -4/Lab | Found Alien Artifact 5235 | -4/Lab | Found Prototype Energy Gun 5235 | -4/Lab | Identified Hyp. EM Gauss Rifle 5638 | -4/Lab | Build established: Mutant 5684 | -4/Lab | Found Prototype Protection 5684 | -4/Lab | Identified Exp. Powered Armor 5687 | -4/Lab | Found Prototype Hackware 5687 | -4/Lab | Identified Quantum Router 5702 | -4/Lab | Entered Research 5702 | -3/Research | Evolved 2 slots: Power x1, Utility x1 5826 | -3/Research | Discovered new exit (range 9) 5945 | -3/Research | Zion Demo squad teleported in 5982 | -3/Research | Zion Infowar Resupply teleported in 6008 | -3/Research | Discovered new exit (range 14) 6012 | -3/Research | Identified exit to Research 6019 | -3/Research | Zion Fire squad teleported in 6034 | -3/Research | Build established: Hacker-Sprinter 6099 | -3/Research | Zion Hover Resupply teleported in 6118 | -3/Research | Found Prototype Slashing Weapon 6118 | -3/Research | Identified Molecular Scythe 6153 | -3/Research | Zion Hacker squad teleported in 6333 | -3/Research | Allied Derelicts emerged from ambush trap array 6364 | -3/Research | Found Imp. Powered Armor 6408 | -3/Research | Discovered exit to Research (range 12) 6500 | -3/Research | Identified Transdimensional Reconstructor 6500 | -3/Research | Warped through subspace 6513 | -3/Research | Spotted B-90 Cyclops 6514 | -3/Research | Discovered new exit (range 16) 6516 | -3/Research | Entered Quarantine 6530 | -3/Quarantine | Retrieved Zion intel report: Component Schematics 6546 | -3/Quarantine | Cryocooling Duct disabled 6561 | -3/Quarantine | Ambient heat levels rising (+20) 6561 | -3/Quarantine | Non-combat units ordered to evacuate 6632 | -3/Quarantine | Found Alien Artifact 6636 | -3/Quarantine | Identified Core Reset Matrix 6636 | -3/Quarantine | Identified Hpw. Transdimensional Reconstructor 6636 | -3/Quarantine | Used Core Reset Matrix 6639 | -3/Quarantine | Found Hpw. Transdimensional Reconstructor 6640 | -3/Quarantine | Detected hypermatrix surge 6640 | -3/Quarantine | Sensed 13 artifacts in vicinity 6643 | -3/Quarantine | Found Hpw. Transdimensional Reconstructor 6644 | -3/Quarantine | Found Hpw. Transdimensional Reconstructor 6682 | -3/Quarantine | Found Core Stripper 6695 | -3/Quarantine | Discovered exit to Research (range 4) 6707 | -3/Quarantine | Retrieved Zion intel report: Component Stockpiles 6774 | -3/Quarantine | Found Subatomic Replicator 6795 | -3/Quarantine | Spotted Fortress 6808 | -3/Quarantine | Discovered new exit (range 6) 6809 | -3/Quarantine | Entered Section 7 6810 | -3/Section 7 | Sensed 27 artifacts in vicinity 6814 | -3/Section 7 | Spotted S7 Guard 6820 | -3/Section 7 | Spotted S7 Guard 6831 | -3/Section 7 | Used Subatomic Replicator to create Supercharged Integrated Reactor 6833 | -3/Section 7 | Installed Supercharged Integrated Reactor, increased core energy generation (+15) 6843 | -3/Section 7 | Found Spacefold Activator 6850 | -3/Section 7 | Found Integrated Thermoelectric Network 6853 | -3/Section 7 | Installed Integrated Thermoelectric Network, gained heat-energy exchange potential 6859 | -3/Section 7 | Found Core Physics Calibrator 6895 | -3/Section 7 | Crushed by falling debris 6906 | -3/Section 7 | Spotted S7 Guard 6907 | -3/Section 7 | Found Core Membrane 6908 | -3/Section 7 | Spotted B-86 Titan 6909 | -3/Section 7 | Warped through subspace 6910 | -3/Section 7 | Discovered exit to Research (range 11) 6910 | -3/Section 7 | Warped through subspace 6911 | -3/Section 7 | Warped through subspace 6912 | -3/Section 7 | Core integrity fell below 50% 6927 | -3/Section 7 | Installed Core Membrane, gained immunity to corruption 6928 | -3/Section 7 | Found Transdimensional Reconstructor 6930 | -3/Section 7 | Found Transdimensional Reconstructor 6931 | -3/Section 7 | Found Transdimensional Reconstructor 6943 | -3/Section 7 | Spotted B-99 Colossus 6950 | -3/Section 7 | Found Integrated Reactor 6950 | -3/Section 7 | Installed Integrated Reactor, increased core energy generation (+10) 6951 | -3/Section 7 | Found Integrated Reactor 6951 | -3/Section 7 | Installed Integrated Reactor, increased core energy generation (+10) 6953 | -3/Section 7 | Found Integrated Reactor 6953 | -3/Section 7 | Installed Integrated Reactor, increased core energy generation (+10) 6960 | -3/Section 7 | Found LRC Matter Compressor 6960 | -3/Section 7 | Installed LRC Matter Compressor, increased matter storage capacity (+125) 6962 | -3/Section 7 | Found LRC Matter Compressor 6962 | -3/Section 7 | Installed LRC Matter Compressor, increased matter storage capacity (+125) 6964 | -3/Section 7 | Found LRC Armor 6964 | -3/Section 7 | Installed LRC Armor, increased core integrity (+250) 6975 | -3/Section 7 | Found Integrity Redistributor 7005 | -3/Section 7 | Entered Research 7005 | -2/Research | Evolved 2 slots (calibrated): -Power x1, Propulsion x2, Utility x2, -Weapon x1 7009 | -2/Research | Zion Zionite Resupply teleported in 7012 | -2/Research | Found Prototype Protection 7012 | -2/Research | Identified Zio. Shade Carapace 7015 | -2/Research | Found Prototype Protection 7015 | -2/Research | Identified Zio. Heavy Carapace 7017 | -2/Research | Found Prototype Energy Cannon 7017 | -2/Research | Identified Zio. Alpha Cannon 7031 | -2/Research | Discovered new exit (range 7) 7036 | -2/Research | Zion Light squad teleported in 7072 | -2/Research | Retrieved Zion intel report: Depthwide Sectors/-1 7105 | -2/Research | Build established: Alien-Sprinter 7164 | -2/Research | Entered Testing 7165 | -2/Testing | Spotted PX-L4L7E7PWAE 7179 | -2/Testing | Destroyed PX-L4L7E7PWAE 7184 | -2/Testing | Found Prototype Processor 7184 | -2/Testing | Identified Exp. Targeting Computer 7220 | -2/Testing | Found Prototype Device 7220 | -2/Testing | Identified Beam Splitter 7262 | -2/Testing | Retrieved Zion intel report: Active Garrisons 7272 | -2/Testing | Spotted Striker 7273 | -2/Testing | Spotted Striker 7297 | -2/Testing | Found Prototype Energy Gun 7297 | -2/Testing | Identified Hyp. EM Gauss Rifle 7316 | -2/Testing | Found Prototype Hackware 7329 | -2/Testing | Found Prototype Device 7329 | -2/Testing | Identified Adv. Kinecellerator 7353 | -2/Testing | Discovered new exit (range 12) 7359 | -2/Testing | Found Prototype Device 7359 | -2/Testing | Identified Exp. Hardlight Generator 7369 | -2/Testing | Found Prototype Processor 7369 | -2/Testing | Identified Exp. Melee Analysis Suite 7378 | -2/Testing | Spotted PD-4418WVQU5K 7388 | -2/Testing | Identified Exp. Hacking Suite 7389 | -2/Testing | Found Prototype Energy Cannon 7406 | -2/Testing | Entered Access 7406 | -1/Access | Evolved 2 slots: Power x1, Weapon x1 7533 | -1/Access | Found Unknown Device 7533 | -1/Access | Identified Antimissile System 7589 | -1/Access | Zion Thermal Resupply teleported in 7603 | -1/Access | Spotted B-99 Colossus 7668 | -1/Access | Retrieved Zion intel report: Active Terminals 7669 | -1/Access | Zion Heavy squad teleported in 7879 | -1/Access | Spotted B-99 Colossus 7911 | -1/Access | Zion Experimental squad teleported in 7926 | -1/Access | Found Prototype Protection 7926 | -1/Access | Identified Zio. Weapon Casing 7953 | -1/Access | Found Corrupted Prototype Energy Cannon 7961 | -1/Access | Found Prototype Protection 7961 | -1/Access | Identified Zio. Shade Armor 8093 | -1/Access | Retrieved Zion intel report: Depthwide Sectors/-1 8094 | -1/Access | Zion Recon squad teleported in 8146 | -1/Access | Discovered new exit (range 7) 8147 | -1/Access | Entered Command 8190 | -1/Command | Retrieved Zion intel report: Active Garrisons 8202 | -1/Command | Retrieved Zion intel report: Depthwide Sectors/0 8217 | -1/Command | Retrieved Zion intel report: Depthwide Sectors/-1 8236 | -1/Command | Spotted B-99 Colossus 8280 | -1/Command | Retrieved Zion intel report: Active Terminals 8306 | -1/Command | Retrieved Zion intel report: Trap Installations 8324 | -1/Command | Found Prototype Slashing Weapon 8324 | -1/Command | Identified Vibroblade 8387 | -1/Command | Disengaged cave seal 8397 | -1/Command | Search patrols dispatched 8398 | -1/Command | Spotted B-99 Colossus 8413 | -1/Command | Disengaged cave seal 8456 | -1/Command | Identified Zio. Alpha Cannon Mk. II 8460 | -1/Command | Identified Imp. Potential Cannon 8536 | -1/Command | Found Zio. Weapon Casing 8563 | -1/Command | Spotted M Guard 8563 | -1/Command | Spotted M Guard 8563 | -1/Command | Spotted Combat Programmer 8575 | -1/Command | Allies destroyed Combat Programmer 8577 | -1/Command | Spotted Combat Programmer 8614 | -1/Command | Allies destroyed M Guard 8622 | -1/Command | Allies destroyed M Guard 8622 | -1/Command | All MAIN.C guards destroyed 8625 | -1/Command | Found Corrupted Prototype Device 8625 | -1/Command | Identified AEGIS Remote Shield 8695 | -1/Command | First assault squad dispatched 8807 | -1/Command | High security lockdown imminent 8810 | -1/Command | Met MAIN.C 8834 | -1/Command | 0b10 Conduit disabled 8846 | -1/Command | Destroyed MAIN.C Shell 8848 | -1/Command | MAIN.C activated Command garrisons 8862 | -1/Command | Allies destroyed MAIN.C 8862 | -1/Command | Discovered new exit (range 48) 8862 | -1/Command | Discovered new exit (range 98) 8862 | -1/Command | Extracted map data and part IDs from MAIN.C's data core 8863 | -1/Command | Found Exp. Targeting Computer 8865 | -1/Command | Found Centrium Heavy Armor Plating 8985 | -1/Command | Found Exp. Phase Shifter 9841 | -1/Command | Found Null Cannon 9930 | -1/Command | Build established: Alien-Mutant 11143 | -1/Command | Found Zero-point Reactor 11247 | -1/Command | Found Adv. Particle Accelerator 11277 | -1/Command | Found Zio. Shade Armor 11297 | -1/Command | Found Zio. Shade Armor 11374 | -1/Command | Build established: Alien-Sprinter 11592 | -1/Command | Found Exp. Weapon Cycler 11600 | -1/Command | Found Zio. Shade Armor 11601 | -1/Command | Found Zio. Shade Armor 11734 | -1/Command | Used Integrity Redistributor, redistributed integrity from core (-202) 11866 | -1/Command | Found Exp. Core Analyzer 11873 | -1/Command | Found Exp. Core Analyzer 11920 | -1/Command | Found Corrupted Zio. Alpha Cannon Mk. II 12059 | -1/Command | Found Exp. Targeting Computer 12161 | -1/Command | Warped through subspace to slip node 12161 | -1/Command | Discovered new exit (range 4) 12164 | -1/Command | Found Zio. Weapon Casing 12165 | -1/Command | Entered Access_0 12166 | -1/Access_0 | Architect warped through subspace 12166 | -1/Access_0 | Sensed 4 artifacts in vicinity 12192 | -1/Access_0 | Destroyed A8 12201 | -1/Access_0 | Subspace Access Node disabled 12208 | -1/Access_0 | Subspace Access Node disabled 12217 | -1/Access_0 | A6 warped into view 12242 | -1/Access_0 | Architect warped through subspace 12262 | -1/Access_0 | Destroyed A6 12304 | -1/Access_0 | A5 warped into view 12321 | -1/Access_0 | Architect warped through subspace 12324 | -1/Access_0 | Destroyed A5 12329 | -1/Access_0 | Found Integrated Reactor 12329 | -1/Access_0 | Installed Integrated Reactor, increased core energy generation (+10) 12429 | -1/Access_0 | A4 warped into view 12448 | -1/Access_0 | Destroyed A4 12456 | -1/Access_0 | Architect warped through subspace 12463 | -1/Access_0 | Found Exp. Armor Integrity Analyzer 12464 | -1/Access_0 | Found Exp. Force Field 12477 | -1/Access_0 | Architect warped through subspace 12504 | -1/Access_0 | Subspace Access Node disabled 12532 | -1/Access_0 | Architect warped through subspace 12550 | -1/Access_0 | Architect warped through subspace 12573 | -1/Access_0 | Subspace Access Node disabled 12594 | -1/Access_0 | Destroyed Architect 12595 | -1/Access_0 | Architect triggered a singularity event 12595 | -1/Access_0 | Extracted unknown sensor trigger ID from Architect's data core 12596 | -1/Access_0 | Found Hpw. Transdimensional Reconstructor 12596 | -1/Access_0 | Warped through subspace to slip node 12596 | -1/Access_0 | Discovered new exit (range 8) 12600 | *** | Escaped singularity! Last Messages --------------- 12583_ Quantum Shear penetrates Wall. 12585_ Quantum Shear penetrates Earth. 12585_ Quantum Shear penetrates Wall. 12588_ Penetrated by Quantum Shear. 12588_ Quantum Shear penetrates Wall. 12590_ Penetrated by Quantum Shear. 12590_ Quantum Shear penetrates Earth. 12592_ Quantum Shear penetrates Wall. 12594_ Architect: "If I can't win, no one wins!" 12594_ Architect destroyed. 12595_ A0_COM: Initiating irreversible singularity event. Goodbye. 12595_ Acquired data core, extracted unknown sensor trigger ID. 12596_ A0_COM: 10. 12596_ Acquired Hpw. Transdimensional Reconstructor. 12596_ Warped through subspace, drawn to slip node. 12596_ EXIT=FOUND 12597_ A0_COM: 9. 12598_ A0_COM: 8. 12599_ A0_COM: 7. 12600_ A0_COM: 6. Map ----- +----------------------------------------------------+ | | | | | | | | | | | | | | | | | | | | | | | | | | | | | | | | | ?????????????????????????????????????????????????? | | ?????????????????????????????????????????????????? | | ?????????????????????????????????????????????????? | | ?????????????????????????????????????????????????? | | ?????????????????????????????????????????????????? | | ?????????????????????????????????????????????????? | | ????????????????????????###??????????????????????? | | ???????????????????????## ##?????????????????????? | | ???????????????????????# #?????????????????????? | | ???????????????????????# @ #?????????????????????? | | ??????????????????????## #?????????????????????? | | ??????????????????????# #?????????????????????? | | ??????????????????????# ##?????????????????????? | | ??????????????????????## #?????????????????????? | | ??????????????????????# #?????????????????????? | | ??????????????????????# ##?????????????????????? | | ??????????????????????# < #?????????????????????? | | ??????????????????????# ##?????????????????????? | | ??????????????????????## #??????????????????????? | | ???????????????????????####??????????????????????? | | ?????????????????????????????????????????????????? | | ?????????????????????????????????????????????????? | | ?????????????????????????????????????????????????? | | ?????????????????????????????????????????????????? | | ?????????????????????????????????????????????????? | | ?????????????????????????????????????????????????? | | ?????????????????????????????????????????????????? | | ?????????????????????????????????????????????????? | | ?????????????????????????????????????????????????? | | ?????????????????????????????????????????????????? | | ?????????????????????????????????????????????????? | | ?????????????????????????????????????????????????? | | ?????????????????????????????????????????????????? | | ?????????????????????????????????????????????????? | +----------------------------------------------------+ Best States ------------- Heat Dissipation 87 Coolant Potential 120 Energy Generation 120 Energy Capacity 1590 Matter Stores 550 Matter Capacity 550 Sight Range 23 Terrain Scan Range 16 Terrain Scan Density 110 ECM Strength 1 Jamming Range 16 Cloak Strength 5 Power Amplification 40 Additional Mass Support 25 Armor Coverage 1600 Resistance: KI 30 Resistance: TH 30 Resistance: EX 30 Resistance: EM 30 Resistance: I 30 Resistance: S 30 Resistance: P 30 Propulsion Shielding 66 Utility Shielding 66 Weapon Shielding 100 Point Defense Rating 560 Weapon Cycling 30 Melee Speed Boost 40 Phase Shifting 20 Evasion (%) 98 Targeting Accuracy 25 Melee Accuracy 12 Target Analysis 8 Core Analysis 12 Armor Integrity Analysis 50 Recoil Reduction 4 Kinecelleration 50 Salvage Targeting 5 Offensive Hacking 54 Defensive Hacking 36 Item Schematics ----------------- Adv. Remote Shield | -3/Section 7 | Archive Cld. Antigrav System | -3/Section 7 | Archive Electron Diverter | -3/Section 7 | Archive Hdn. Centrium Wheel | -3/Section 7 | Archive Tri-rail Accelerator | -3/Section 7 | Archive Robot Schematics ------------------ None Fabricated ------------ Nothing Alien Tech Used ----------------- Integrated Mediator Core Regenerator Transdimensional Reconstructor Core Reset Matrix Core Stripper Subatomic Replicator Supercharged Integrated Reactor Spacefold Activator Integrated Thermoelectric Network High-powered Transdimensional Reconstructor Core Membrane Integrated Reactor LRC Matter Compressor LRC Armor Core Physics Calibrator Integrity Redistributor Achievements -------------- None Challenges ------------ None Game ------ Seed NovaNullBuckler Manual? 0 Play Time 02:50:34 Cumulative 2464.4 hours Start 2023.04.08 @ 07:33:39 End 2023.04.08 @ 10:34:19 Sessions 1 Manual Loads 0 Difficulty Rogue Special Mode None Game No. 2822 Rogue 2814 Adventurer 0 Explorer 8 Win Type 6 Total 302 Types 49/32/103/3/3/5/104/2/1 Lore% 97 Gallery% 98 Achievement% 100 Wizard Run 0 Options --------- ASCII 0 Keyboard 1 Movement Numpad Keybinds 1 Fullscreen 2 Font 18/SmallcapsGlow Map View 76x50 Tactical HUD 1 Map Filters NONE Filters NONE Steam 1 RUN: 7808f398-4e51-408b-a48f-4aa76706a724